fUST/lending_fUST_20250624
["ID","MTS","AMOUNT","RATE_DAILY","PERIOD"]
[367319077,1750747839848,-518.13,0.00019178,2]
[367319078,1750747839858,-182.36,0.00019178,2]
[367319079,1750747839867,-588.68,0.00019178,2]
[367319081,1750747839876,-1754.03,0.00019178,2]
[367319083,1750747839885,-422.69359754,0.00019178,2]
[367319085,1750747839895,-460.0,0.00019178,2]
[367319086,1750747839903,-428.45471386,0.00019178,2]
[367319087,1750747839913,-350.4780944,0.00019178,2]
[367319088,1750747839922,-1196.62,0.00019178,2]
[367319089,1750747839931,-460.0,0.00019178,2]
[367319090,1750747839940,-505.75043015,0.00019178,2]
[367319091,1750747839949,-460.0,0.00019178,2]
[367319092,1750747839959,-484.86,0.00019178,2]
[367319093,1750747839968,-460.0,0.00019178,2]
[367319094,1750747839977,-460.0,0.00019178,2]
[367319095,1750747839987,-460.0,0.00019178,2]
[367319096,1750747839996,-460.0,0.00019178,2]
[367319097,1750747840006,-460.0,0.00019178,2]
[367319098,1750747840015,-1153.0,0.00019178,2]
[367319099,1750747840024,-411.78910029,0.00019178,2]
[367319100,1750747840033,-460.0,0.00019178,2]
[367319101,1750747840042,-460.0,0.00019178,2]
[367319103,1750747840051,-560.1,0.00019178,2]
[367319104,1750747840060,-460.0,0.00019178,2]
[367319107,1750747840069,-284.8642593,0.00019178,2]
[367319108,1750747840078,-460.0,0.00019178,2]
[367319110,1750747840088,-552.74,0.00019178,2]
[367319112,1750747840097,-1529.68,0.00019178,2]
[367319115,1750747840108,-460.0,0.00019178,2]
[367319116,1750747840118,-4366.49,0.00019178,2]
[367319119,1750747840127,-460.0,0.00019178,2]
[367319120,1750747840136,-1471.91,0.00019178,2]
[367319123,1750747840146,-1368.06,0.00019178,2]
[367319124,1750747840155,-460.0,0.00019178,2]
[367319127,1750747840165,-451.97256478,0.00019178,2]
[367319128,1750747840175,-607.16,0.00019178,2]
[367319130,1750747840183,-460.0,0.00019178,2]
[367319132,1750747840192,-432.472781,0.00019178,2]
[367319134,1750747840202,-460.0,0.00019178,2]
[367319136,1750747840212,-460.0,0.00019178,2]
[367319137,1750747840222,-460.0,0.00019178,2]
[367319138,1750747840231,-2337.93,0.00019178,2]
[367319140,1750747840240,-460.0,0.00019178,2]
[367319142,1750747840250,-704.95,0.00019178,2]
[367319144,1750747840259,-545.23,0.00019178,2]
[367319146,1750747840270,-346.66228101,0.00019178,2]
[367319148,1750747840279,-460.0,0.00019178,2]
[367319150,1750747840288,-460.0,0.00019178,2]
[367319152,1750747840298,-1065.35,0.00019178,2]
[367319154,1750747840308,-460.0,0.00019178,2]
[367319156,1750747840317,-622.59,0.00019178,2]
[367319158,1750747840326,-591.12,0.00019178,2]
[367319160,1750747840336,-460.0,0.00019178,2]
[367319162,1750747840345,-460.0,0.00019178,2]
[367319164,1750747840354,-460.0,0.00019178,2]
[367319165,1750747840365,-460.0,0.00019178,2]
[367319167,1750747840375,-1005.91,0.00019178,2]
[367319169,1750747840384,-460.0,0.00019178,2]
[367319172,1750747840393,-462.31124312,0.00019178,2]
[367319173,1750747840402,-460.0,0.00019178,2]
[367319176,1750747840414,-460.0,0.00019178,2]
[367319178,1750747840424,-651.96,0.00019178,2]
[367319180,1750747840433,-1445.01,0.00019178,2]
[367319182,1750747840442,-460.0,0.00019178,2]
[367319183,1750747840451,-1776.44,0.00019178,2]
[367319185,1750747840461,-1415.62,0.00019178,2]
[367319188,1750747840470,-261.63049937,0.00019178,2]
[367319189,1750747840479,-556.05,0.00019178,2]
[367319192,1750747840489,-460.0,0.00019178,2]
[367319193,1750747840498,-460.0,0.00019178,2]
[367319195,1750747840508,-614.9,0.00019178,2]
[367319197,1750747840517,-1773.41,0.00019178,2]
[367319199,1750747840527,-394.02466216,0.00019178,2]
[367319202,1750747840536,-556.51,0.00019178,2]
[367319203,1750747840545,-460.0,0.00019178,2]
[367319206,1750747840555,-333.826065,0.00019178,2]
[367319208,1750747840568,-460.0,0.00019178,2]
[367319210,1750747840578,-460.0,0.00019178,2]
[367319212,1750747840587,-501.53,0.00019178,2]
[367319214,1750747840597,-460.0,0.00019178,2]
[367319216,1750747840608,-460.0,0.00019178,2]
[367319218,1750747840617,-534.17,0.00019178,2]
[367319220,1750747840626,-460.0,0.00019178,2]
[367319222,1750747840635,-460.0,0.00019178,2]
[367319224,1750747840644,-1660.78,0.00019178,2]
[367319226,1750747840654,-2469.44,0.00019178,2]
[367319227,1750747840663,-460.0,0.00019178,2]
[367319230,1750747840672,-460.0,0.00019178,2]
[367319232,1750747840682,-932.24,0.00019178,2]
[367319233,1750747840691,-460.0,0.00019178,2]
[367319234,1750747840824,-460.0,0.00019178,2]
[367319235,1750747840834,-460.0,0.00019178,2]
[367319236,1750747840843,-933.33,0.00019178,2]
[367319237,1750747840853,-460.0,0.00019178,2]
[367319238,1750747840864,-415.790246,0.00019178,2]
[367319239,1750747840873,-500.0,0.00019205,2]
[367319241,1750747840883,-151.0,0.00019205,2]
[367319242,1750747840892,-151.0,0.00019205,2]
[367319244,1750747840901,-151.0,0.00019205,2]
[367319246,1750747840910,-151.0,0.00019205,2]
[367319248,1750747840919,-500.0,0.00019233,2]
[367319250,1750747840928,-151.0,0.00019233,2]
[367319252,1750747840938,-199.09323048,0.00019233,2]
[367319254,1750747840948,-500.0,0.0001926,2]
[367319256,1750747840957,-151.0,0.0001926,2]
[367319258,1750747840966,-500.0,0.00019288,2]
[367319260,1750747840975,-162.23329363,0.00019315,2]
[367319262,1750747840984,-160.0,0.00019401,3]
[367319264,1750747840993,-160.0,0.00019448,2]
[367319266,1750747841002,-836.80226758,0.00019448,2]
[367319268,1750747841011,-425.14181427,0.00019448,2]
[367319270,1750747841020,-846.68469334,0.00019448,2]
[367319272,1750747841029,-160.0,0.00019448,2]
[367319274,1750747841038,-213.66798275,0.00019448,2]
[367319276,1750747841047,-230.20892031,0.00019448,2]
[367319278,1750747841056,-12556.00642039,0.00019448,2]
[367319279,1750747841065,-160.0,0.00019448,2]
[367319281,1750747841075,-4573.05038162,0.00019452,2]
[367319283,1750747841084,-3494.54043786,0.00019452,2]
[367319285,1750747841094,-460.0,0.00019452,2]
[367319287,1750747841103,-169.34165452,0.00019452,2]
[367319289,1750747841114,-312.43977963,0.00019452,2]
[367319291,1750747841122,-460.0,0.00019452,2]
[367319293,1750747841132,-460.0,0.00019452,2]
[367319295,1750747841141,-400.0,0.00019452,2]
[367319297,1750747841150,-460.0,0.00019452,2]
[367319299,1750747841159,-548.04,0.00019452,2]
[367319301,1750747841168,-380.0,0.00019452,2]
[367319303,1750747841177,-460.0,0.00019452,2]
[367319305,1750747841186,-460.0,0.00019452,2]
[367319307,1750747841196,-235.61578073,0.00019452,2]
[367319309,1750747841205,-460.0,0.00019452,2]
[367319311,1750747841214,-460.0,0.00019452,2]
[367319313,1750747841224,-460.0,0.00019452,2]
[367319315,1750747841233,-571.29,0.00019452,2]
[367319317,1750747841243,-460.0,0.00019452,2]
[367319319,1750747841252,-460.0,0.00019452,2]
[367319321,1750747841262,-470.13,0.00019452,2]
[367319323,1750747841272,-460.0,0.00019452,2]
[367319325,1750747841281,-460.0,0.00019452,2]
[367319327,1750747841290,-460.0,0.00019452,2]
[367319329,1750747841299,-522.02,0.00019452,2]
[367319331,1750747841309,-460.0,0.00019452,2]
[367319333,1750747841318,-285.0271153,0.00019452,2]
[367319335,1750747841327,-460.0,0.00019452,2]
[367319337,1750747841336,-455.9,0.00019452,2]
[367319339,1750747841346,-316.26692273,0.00019452,2]
[367319341,1750747841355,-460.0,0.00019452,2]
[367319343,1750747841365,-776.09,0.00019452,2]
[367319345,1750747841375,-460.0,0.00019452,2]
[367319347,1750747841385,-460.0,0.00019452,2]
[367319349,1750747841396,-629.47,0.00019452,2]
[367319351,1750747841405,-518.13,0.00019452,2]
[367319353,1750747841416,-588.68,0.00019452,2]
[367319355,1750747841425,-1754.03,0.00019452,2]
[367319357,1750747841435,-1196.62,0.00019452,2]
[367319359,1750747841445,-460.0,0.00019452,2]
[367319361,1750747841455,-484.86,0.00019452,2]
[367319363,1750747841465,-460.0,0.00019452,2]
[367319365,1750747841474,-460.0,0.00019452,2]
[367319367,1750747841484,-382.87495642,0.00019452,2]
[367319369,1750747841495,-417.58325611,0.00019452,2]
[367319371,1750747841506,-1153.0,0.00019452,2]
[367319373,1750747841515,-460.0,0.00019452,2]
[367319374,1750747841524,-560.1,0.00019452,2]
[367319376,1750747841534,-460.0,0.00019452,2]
[367319378,1750747841543,-1529.68,0.00019452,2]
[367319381,1750747841553,-552.74,0.00019452,2]
[367319383,1750747841562,-4366.49,0.00019452,2]
[367319384,1750747841571,-1471.91,0.00019452,2]
[367319386,1750747841580,-1368.06,0.00019452,2]
[367319388,1750747841589,-460.0,0.00019452,2]
[367319390,1750747841599,-607.16,0.00019452,2]
[367319392,1750747841610,-460.0,0.00019452,2]
[367319394,1750747841619,-460.0,0.00019452,2]
[367319396,1750747841628,-2337.93,0.00019452,2]
[367319398,1750747841637,-704.95,0.00019452,2]
[367319400,1750747841646,-545.23,0.00019452,2]
[367319402,1750747841655,-460.0,0.00019452,2]
[367319404,1750747841665,-914.5706801,0.00019452,2]
[367319420,1750747841808,-460.0,0.00019178,2]
[367319423,1750747841818,-150.7793199,0.00019452,2]
[367319424,1750747841827,-622.59,0.00019452,2]
[367319426,1750747841836,-460.0,0.00019452,2]
[367319428,1750747841845,-591.12,0.00019452,2]
[367319430,1750747841854,-460.0,0.00019452,2]
[367319432,1750747841863,-1005.91,0.00019452,2]
[367319434,1750747841873,-461.84,0.00019452,2]
[367319436,1750747841882,-5.15523426,0.00019452,2]
[367319579,1750747845604,-460.0,0.00019178,2]
[367319581,1750747845613,-460.0,0.00019178,2]
[367319583,1750747845625,-460.0,0.00019178,2]
[367319585,1750747845635,-460.0,0.00019178,2]
[367319587,1750747845644,-460.0,0.00019178,2]
[367319589,1750747845654,-285.28,0.00019442,3]
[367319592,1750747845663,-646.80476574,0.00019452,2]
[367319595,1750747845673,-1445.01,0.00019452,2]
[367319598,1750747845682,-1776.44,0.00019452,2]
[367319600,1750747845691,-1415.62,0.00019452,2]
[367319602,1750747845701,-556.05,0.00019452,2]
[367319604,1750747845710,-460.0,0.00019452,2]
[367319607,1750747845730,-614.9,0.00019452,2]
[367319609,1750747845741,-1773.41,0.00019452,2]
[367319611,1750747845751,-556.51,0.00019452,2]
[367319614,1750747845761,-460.0,0.00019452,2]
[367319616,1750747845771,-501.53,0.00019452,2]
[367319618,1750747845781,-460.0,0.00019452,2]
[367319620,1750747845792,-534.17,0.00019452,2]
[367319622,1750747845802,-460.0,0.00019452,2]
[367319624,1750747845811,-1660.78,0.00019452,2]
[367319626,1750747845820,-2469.44,0.00019452,2]
[367319628,1750747845830,-2.49273426,0.00019452,2]
[367319631,1750747845858,-457.50726574,0.00019452,2]
[367319634,1750747845868,-71.39375808,0.00019452,2]
[367319821,1750747855232,290.06447948,0.000191,2]
[367319822,1750747895776,150.0,0.000189,2]
[367319823,1750747917402,1200.0,0.00024,30]
[367319824,1750747925342,10000.0,0.00024,30]
[367319825,1750747951583,5000.0,0.00024,30]
[367319826,1750747959664,377.36625279,0.00019073,2]
[367319827,1750747961286,-195.5825576,0.00019136,2]
[367319828,1750747982109,150.0,0.000189,2]
[367319829,1750747993237,150.0,0.00024,30]
[367319830,1750747997909,200.0,0.00019178,10]
[367319831,1750747998493,208.257992,0.00019178,10]
[367319832,1750747998940,291.58486142,0.00019075,2]
[367319833,1750748034328,5000.0,0.00024,30]
[367319835,1750748176474,1000.0,0.00024,30]
[367319836,1750748214359,1000.0,0.00024,30]
[367319837,1750748232064,4041.58121648,0.0002465,120]
[367319838,1750748259136,279.58457346,0.00019073,2]
[367319839,1750748261567,951.53055565,0.00019172,13]
[367319840,1750748474638,535.368683,0.00013699,2]
[367319844,1750748544515,244.63650176,0.00019065,2]
[367319845,1750748577747,1074.44686568,0.00019078,2]
[367319847,1750748719964,517.67157431,0.00019178,7]
[367319849,1750748806281,214.05693904,0.00019067,2]
[367319850,1750748845094,-151.07,0.00019155,2]
[367319851,1750748845115,-151.07,0.00019155,2]
[367319852,1750748845137,-343.48035247,0.00019155,2]
[367319853,1750748860444,400.0,0.00024,30]
[367319854,1750748919023,859.55749256,0.00019078,2]
[367319855,1750749003177,168.74563269,0.000191,2]
[367319874,1750749032424,-207.4,0.00019155,2]
[367319875,1750749032434,-214.89138918,0.00019155,2]
[367319876,1750749037749,223.77599812,0.00019056,2]
[367319910,1750749038339,-1473.10861082,0.00019155,2]
[367319912,1750749038349,-674.42766675,0.00019155,2]
[367319914,1750749038359,-237.74,0.00019156,3]
[367319916,1750749038369,-321.65236419,0.00019156,3]
[367319919,1750749038381,-391.56763581,0.00019156,3]
[367319921,1750749038390,-1200.0,0.00019159,2]
[367319923,1750749038399,-500.0,0.0001916,2]
[367319925,1750749038409,-500.0,0.0001916,2]
[367319927,1750749038418,-500.0,0.0001916,2]
[367319929,1750749038428,-500.0,0.0001916,2]
[367319931,1750749038438,-500.0,0.0001916,2]
[367319933,1750749038447,-500.0,0.0001916,2]
[367319935,1750749038457,-500.0,0.0001916,2]
[367319937,1750749038467,-500.0,0.0001916,2]
[367319939,1750749038477,-500.0,0.0001916,2]
[367319941,1750749038486,-475.89236419,0.0001916,2]
[367319944,1750749038508,-24.10763581,0.0001916,2]
[367319946,1750749038518,-500.0,0.0001916,2]
[367319948,1750749038527,-280.5,0.0001916,2]
[367319951,1750749038538,-500.0,0.0001916,2]
[367319953,1750749038547,-500.0,0.0001916,2]
[367319954,1750749038556,-500.0,0.0001916,2]
[367319957,1750749038566,-500.0,0.0001916,2]
[367319959,1750749038575,-500.0,0.0001916,2]
[367319961,1750749038584,-497.92592623,0.0001916,2]
[367320711,1750749045826,-2.07407377,0.0001916,2]
[367320713,1750749045836,-500.0,0.0001916,2]
[367320715,1750749045846,-500.0,0.0001916,2]
[367320717,1750749045855,-184.55176354,0.0001916,2]
[367320719,1750749045865,-500.0,0.0001916,2]
[367320721,1750749045874,-500.0,0.0001916,2]
[367320723,1750749045883,-500.0,0.0001916,2]
[367320725,1750749045893,-500.0,0.0001916,2]
[367320727,1750749045903,-500.0,0.0001916,2]
[367320729,1750749045913,-500.0,0.0001916,2]
[367320731,1750749045923,-500.0,0.0001916,2]
[367320733,1750749045932,-500.0,0.0001916,2]
[367320735,1750749045941,-500.0,0.0001916,2]
[367320737,1750749045951,-317.94259069,0.0001916,2]
[367320739,1750749045964,-500.0,0.0001916,2]
[367320741,1750749045974,-500.0,0.0001916,2]
[367320743,1750749045984,-500.0,0.0001916,2]
[367320746,1750749045993,-630.74906611,0.0001916,2]
[367320748,1750749046004,-500.0,0.0001916,2]
[367320750,1750749046014,-500.0,0.0001916,2]
[367320752,1750749046024,-500.0,0.0001916,2]
[367320754,1750749046034,-388.87118876,0.0001916,2]
[367320756,1750749046043,-500.0,0.0001916,2]
[367320758,1750749046053,-346.42764463,0.0001916,2]
[367321448,1750749066515,187.29982166,0.0001906,2]
[367321450,1750749124257,-154.79,0.00019156,3]
[367321451,1750749124282,-145.21,0.00019159,2]
[367321452,1750749155430,-154.79,0.00019159,2]
[367321453,1750749155455,-20.92744157,0.00019159,2]
[367321454,1750749157103,-158.93929604,0.00019159,2]
[367321455,1750749183815,168.0,0.00018921,2]
[367321456,1750749183896,-230.5369903,0.00019158,2]
[367321457,1750749186085,168.0,0.00018969,2]
[367321458,1750749187689,10006.53107358,0.00019,2]
[367321459,1750749188344,168.0,0.00018169,2]
[367321460,1750749191913,816.7305816,0.00018312,2]
[367321461,1750749202707,168.0,0.00018431,2]
[367321462,1750749210012,168.0,0.00018266,2]
[367321463,1750749226017,-233.6115,0.00019156,3]
[367321464,1750749241768,1000.0,0.00024,30]
[367321465,1750749242253,151.0,0.000182,2]
[367321466,1750749244962,-168.0,0.00019146,2]
[367321467,1750749244987,-89.09101491,0.00019156,3]
[367321468,1750749259324,832.63314193,0.00019078,2]
[367321469,1750749266451,1047.18282835,0.00019,14]
[367321470,1750749335054,190.31145421,0.00018584,2]
[367321471,1750749346916,276.19705873,0.00019058,2]
[367321476,1750749479727,426.87187049,0.000191,2]
[367321477,1750749482829,1500.0,0.00019178,7]
[367321478,1750749483329,1500.0,0.00019178,7]
[367321479,1750749483638,1500.0,0.00019178,7]
[367321480,1750749483938,1500.0,0.00019178,7]
[367321481,1750749484496,1500.0,0.00019178,7]
[367321482,1750749484910,1500.0,0.00019178,7]
[367321483,1750749485214,1500.0,0.00019178,7]
[367321484,1750749485531,1500.0,0.00019178,7]
[367321485,1750749486111,1462.214248,0.00019178,7]
[367321486,1750749487856,5000.0,0.000191,2]
[367321487,1750749504256,5000.0,0.000191,2]
[367321488,1750749523511,5000.0,0.000191,2]
[367321489,1750749539383,5000.0,0.000191,2]
[367321490,1750749554850,5000.0,0.000191,2]
[367321491,1750749571413,5000.0,0.000191,2]
[367321492,1750749588073,5000.0,0.000191,2]
[367321493,1750749600463,1891.45891363,0.00017192,2]
[367321494,1750749600510,666.10651352,0.00019078,2]
[367321495,1750749607421,5000.0,0.000191,2]
[367321496,1750749622255,241.67242638,0.00019056,2]
[367321497,1750749623989,5000.0,0.000191,2]
[367321498,1750749636349,292.36805145,0.00018581,2]
[367321499,1750749640519,5000.0,0.000191,2]
[367321500,1750749655788,5000.0,0.000191,2]
[367321502,1750749672827,1826.87747872,0.000191,2]
[367321503,1750749691210,517.317817,0.00013699,2]
[367321505,1750749727422,-163.82220355,0.00019154,2]
[367321506,1750749865619,168.0,0.00018454,2]
[367321507,1750749868625,231.94114857,0.00019054,2]
[367321508,1750749869878,159.9074,0.000191,2]
[367321509,1750749877863,167.46501969,0.000191,2]
[367321510,1750749897740,447.83468865,0.0001871,2]
[367321511,1750749902711,1733.38901222,0.000191,2]
[367321513,1750749935433,20514.0798375,0.00018155,2]
[367321514,1750749937695,175.42083087,0.00018579,2]
[367321515,1750749942828,792.69497503,0.00019078,2]
[367321516,1750749958525,16063.6206553,0.00018155,2]
[367321517,1750749958557,188.37731354,0.00019052,2]
[367321518,1750749958967,188.37731353,0.00019053,2]
[367321519,1750749959337,188.37731353,0.00019053,2]
[367321520,1750749981039,153.32499634,0.00019052,2]
[367321521,1750750008929,1545.11449781,0.000189,2]
[367321522,1750750027621,-154.15271675,0.00019151,2]
[367321523,1750750028531,2732.20206427,0.000191,2]
[367321525,1750750043283,252.35262299,0.00019052,2]
[367321526,1750750044111,151.0,0.000191,2]
[367321527,1750750047145,-151.0,0.00019142,3]
[367321528,1750750066782,1013.55141294,0.00018,2]
[367321529,1750750087843,588.0,0.0001827,2]
[367321530,1750750088394,605.65471345,0.00019205,5]
[367321531,1750750093998,201.57223528,0.00019053,2]
[367321532,1750750094392,1030.07633187,0.000189,2]
[367321533,1750750095154,-197.38922078,0.00019142,3]
[367321534,1750750108575,-30.56077922,0.00019142,3]
[367321535,1750750108600,-179.59938713,0.00019142,3]
[367321536,1750750115831,150.99999944,0.0002,120]
[367321537,1750750135930,5000.0,0.000191,2]
[367321538,1750750140542,-66.51061287,0.00019142,3]
[367321539,1750750140568,-87.66501898,0.00019142,3]
[367321540,1750750151217,-158.35498102,0.00019142,3]
[367321541,1750750151241,-17.67757348,0.00019142,3]
[367321542,1750750151602,1262.51718976,0.000191,2]
[367321543,1750750152570,722.94203996,0.00019051,2]
[367321544,1750750167793,500.0,0.00019068,2]
[367321551,1750750194104,24900.0,0.00018152,2]
[367321552,1750750214439,4098.84318624,0.000191,2]
[367321553,1750750224581,98.83479571,0.00018151,2]
[367321554,1750750224606,1200.55492129,0.00018151,2]
[367321608,1750750232802,-807.97,0.00019141,3]
[367321609,1750750232813,-720.41242652,0.00019142,3]
[367321610,1750750232822,-300.0,0.0001915,2]
[367321611,1750750232831,-300.0,0.0001915,2]
[367321613,1750750232840,-300.0,0.0001915,2]
[367321615,1750750232850,-300.0,0.0001915,2]
[367321616,1750750232859,-1200.0,0.0001915,2]
[367321617,1750750232868,-300.0,0.0001915,2]
[367321618,1750750232877,-500.0,0.00019151,2]
[367321619,1750750232886,-5708.7156605,0.00019151,2]
[367321653,1750750238636,-44291.2843395,0.00019151,2]
[367321654,1750750238646,-500.0,0.00019151,2]
[367321655,1750750238659,-312.28414267,0.00019151,2]
[367321656,1750750238669,-500.0,0.00019151,2]
[367321658,1750750238679,-500.0,0.00019151,2]
[367321660,1750750238690,-500.0,0.00019151,2]
[367321662,1750750238699,-515.41402656,0.00019151,2]
[367321665,1750750238709,-500.0,0.00019151,2]
[367321667,1750750238719,-245.81614821,0.00019151,2]
[367321668,1750750238731,-500.0,0.00019151,2]
[367321671,1750750238741,-500.0,0.00019151,2]
[367321673,1750750238751,-500.0,0.00019151,2]
[367321674,1750750238760,-500.0,0.00019151,2]
[367321677,1750750238770,-500.0,0.00019151,2]
[367321679,1750750238779,-500.0,0.00019151,2]
[367321681,1750750238789,-500.0,0.00019151,2]
[367321683,1750750238798,-515.41402656,0.00019151,2]
[367321684,1750750238807,-500.0,0.00019151,2]
[367321686,1750750238819,-500.0,0.00019151,2]
[367321689,1750750238830,-500.0,0.00019151,2]
[367321690,1750750238839,-500.0,0.00019151,2]
[367321692,1750750238849,-415.48348876,0.00019151,2]
[367321695,1750750238858,-500.0,0.00019151,2]
[367321697,1750750238867,-573.98486652,0.00019151,2]
[367321698,1750750238877,-644.96260174,0.00019151,2]
[367321701,1750750238889,-500.0,0.00019151,2]
[367321702,1750750238898,-515.41402656,0.00019151,2]
[367321705,1750750238909,-500.0,0.00019151,2]
[367321707,1750750238918,-500.0,0.00019151,2]
[367321709,1750750238927,-515.41402656,0.00019151,2]
[367321710,1750750238936,-500.0,0.00019151,2]
[367321712,1750750238945,-500.0,0.00019151,2]
[367321714,1750750238955,-515.41402656,0.00019151,2]
[367321716,1750750238964,-500.0,0.00019151,2]
[367321719,1750750238973,-500.0,0.00019151,2]
[367321720,1750750238986,-500.0,0.00019151,2]
[367321722,1750750238995,-515.41402656,0.00019151,2]
[367321724,1750750239004,-500.0,0.00019151,2]
[367321726,1750750239013,-500.0,0.00019151,2]
[367321728,1750750239023,-515.41402656,0.00019151,2]
[367321730,1750750239032,-500.0,0.00019151,2]
[367321732,1750750239042,-500.0,0.00019151,2]
[367321734,1750750239051,-500.0,0.00019151,2]
[367321736,1750750239061,-515.41402656,0.00019151,2]
[367321738,1750750239070,-500.0,0.00019151,2]
[367321740,1750750239080,-500.0,0.00019151,2]
[367321742,1750750239090,-500.0,0.00019151,2]
[367321745,1750750239100,-500.0,0.00019151,2]
[367321747,1750750239109,-515.41402656,0.00019151,2]
[367321763,1750750239258,-500.0,0.00019151,2]
[367321765,1750750239268,-500.0,0.00019151,2]
[367321767,1750750239279,-500.0,0.00019151,2]
[367321769,1750750239289,-157.28376263,0.00019151,2]
[367321771,1750750239299,-515.41402656,0.00019151,2]
[367321772,1750750239309,-500.0,0.00019151,2]
[367321774,1750750239318,-500.0,0.00019151,2]
[367321776,1750750239327,-568.01380286,0.00019151,2]
[367321778,1750750239337,-500.0,0.00019151,2]
[367321780,1750750239346,-515.41402656,0.00019151,2]
[367321781,1750750239355,-500.0,0.00019151,2]
[367321783,1750750239364,-500.0,0.00019151,2]
[367321785,1750750239374,-515.41402656,0.00019151,2]
[367321787,1750750239383,-500.0,0.00019151,2]
[367321789,1750750239392,-500.0,0.00019151,2]
[367321791,1750750239401,-515.41402656,0.00019151,2]
[367321794,1750750239411,-500.0,0.00019151,2]
[367321795,1750750239420,-500.0,0.00019151,2]
[367321798,1750750239430,-515.41402656,0.00019151,2]
[367321800,1750750239442,-500.0,0.00019151,2]
[367321801,1750750239451,-500.0,0.00019151,2]
[367321803,1750750239462,-500.0,0.00019151,2]
[367321806,1750750239472,-500.0,0.00019151,2]
[367321808,1750750239483,-515.41402656,0.00019151,2]
[367321809,1750750239492,-500.0,0.00019151,2]
[367321812,1750750239502,-500.0,0.00019151,2]
[367321813,1750750239513,-515.41402656,0.00019151,2]
[367321816,1750750239522,-500.0,0.00019151,2]
[367321817,1750750239532,-503.61483316,0.00019151,2]
[367321820,1750750239543,-515.41402656,0.00019151,2]
[367321821,1750750239552,-500.0,0.00019151,2]
[367321823,1750750239562,-500.0,0.00019151,2]
[367321826,1750750239571,-515.41402656,0.00019151,2]
[367321827,1750750239581,-500.0,0.00019151,2]
[367321829,1750750239590,-515.41402656,0.00019151,2]
[367321832,1750750239599,-500.0,0.00019151,2]
[367321833,1750750239609,-515.41402656,0.00019151,2]
[367321835,1750750239618,-500.0,0.00019151,2]
[367321837,1750750239629,-500.0,0.00019151,2]
[367321840,1750750239639,-500.0,0.00019151,2]
[367321841,1750750239648,-341.28443805,0.00019151,2]
[367321844,1750750239659,-515.41402656,0.00019151,2]
[367321846,1750750239668,-515.41402656,0.00019151,2]
[367321848,1750750239677,-500.0,0.00019151,2]
[367321849,1750750239691,-500.0,0.00019151,2]
[367321851,1750750239700,-515.41402656,0.00019151,2]
[367321854,1750750239710,-500.0,0.00019151,2]
[367321856,1750750239719,-515.41402656,0.00019151,2]
[367321857,1750750239728,-500.0,0.00019151,2]
[367321859,1750750239737,-500.0,0.00019151,2]
[367321861,1750750239747,-515.41402656,0.00019151,2]
[367321863,1750750239756,-515.41402656,0.00019151,2]
[367321865,1750750239766,-500.0,0.00019151,2]
[367321868,1750750239777,-500.0,0.00019151,2]